fUSD/lending_fUSD_20250724
["ID","MTS","AMOUNT","RATE_DAILY","PERIOD"]
[374601072,1753371032271,-10816.49960038,0.00025543,2]
[374601073,1753371032283,-7548.46039962,0.00025543,2]
[374601074,1753371032293,-162.0,0.0002555,2]
[374601075,1753371032303,-302.54019309,0.00025762,13]
[374601076,1753371032314,-856.67738207,0.00025785,2]
[374601077,1753371032324,-666.0,0.00025879,3]
[374601078,1753371032335,-151.45,0.00026027,2]
[374601079,1753371032345,-424.96,0.00026212,2]
[374601081,1753371032355,-302.54019309,0.00026245,14]
[374601082,1753371032364,-250.0,0.00026287,2]
[374601085,1753371032374,-152.7,0.0002634,2]
[374601087,1753371032389,-174.49,0.00026396,2]
[374601089,1753371032399,-362.7,0.00026619,2]
[374601091,1753371032409,-302.54019309,0.00026728,15]
[374601093,1753371032420,-158.0,0.0002673,2]
[374601095,1753371032430,-251.03962447,0.00026847,2]
[374601097,1753371032440,-1292.40312385,0.00026949,2]
[374601099,1753371032454,-9037.98186341,0.00026949,2]
[374601101,1753371032465,-1122.81369803,0.00026952,2]
[374601104,1753371032477,-6600.84,0.00026952,2]
[374601106,1753371032490,-2463.44425916,0.00026952,2]
[374601108,1753371032503,-143.28703007,0.00026952,2]
[374601110,1753371032513,-387.58,0.00027,2]
[374601113,1753371032529,-987.12489738,0.00027017,2]
[374601115,1753371032542,-579.36353194,0.00027017,2]
[374601118,1753371032562,-1209.12975589,0.00027017,2]
[374601120,1753371032575,-55.88664038,0.00027017,2]
[374601122,1753371032587,-1942.55224683,0.00027027,2]
[374601124,1753371032599,-845.19219316,0.00027027,2]
[374601126,1753371032613,-3198.28067359,0.00027027,2]
[374601129,1753371032627,-504.26535401,0.00027027,2]
[374601131,1753371032639,-248.05953241,0.00027027,2]
[374601133,1753371032649,-7234.74046759,0.00027044,2]
[374601135,1753371032663,-3095.64451967,0.00027044,2]
[374601138,1753371032674,-2082.19475025,0.00027063,2]
[374601140,1753371032687,-404.35360807,0.00027063,2]
[374601456,1753371037653,-871.44,0.00020091,2]
[374601457,1753371037665,-871.44,0.00021821,2]
[374601458,1753371037676,-871.44,0.00023551,2]
[374601459,1753371037687,-871.44,0.00025282,2]
[374601461,1753371037696,-871.44,0.00027012,2]
[374601463,1753371037707,-7843.83662894,0.00027063,2]
[374601465,1753371037717,-302.54019309,0.0002721,16]
[374601467,1753371037727,-200.0,0.00027344,2]
[374601469,1753371037737,-177.79318949,0.00027386,2]
[374601471,1753371037747,-700.0,0.00027397,2]
[374601473,1753371037756,-192.67,0.00027414,2]
[374601474,1753371037766,-1000.0,0.00027414,2]
[374601475,1753371037777,-2171.84564411,0.00027486,2]
[374601476,1753371037789,-2374.2,0.00027486,2]
[374601477,1753371037802,-11312.68597957,0.00027486,2]
[374601478,1753371037814,-1711.8404,0.00027486,2]
[374601479,1753371038191,-3032.73797632,0.00027486,2]
[374601480,1753371038202,-300.0,0.00027486,2]
[374601481,1753371038212,-195.76235577,0.000275,2]
[374601482,1753371038222,-534.69262092,0.000275,2]
[374601483,1753371038232,-477.18900901,0.00027558,2]
[374601484,1753371038242,-211.01152796,0.0002756,2]
[374601485,1753371038252,-160.0,0.0002756,2]
[374601486,1753371038262,-839.91269601,0.0002756,2]
[374601487,1753371038274,-150.0,0.00027597,2]
[374601488,1753371038284,-158.49,0.00027636,2]
[374601489,1753371038294,-158.49,0.00027661,2]
[374601490,1753371038304,-158.49,0.00027686,2]
[374601491,1753371038314,-302.54019309,0.00027693,17]
[374601492,1753371038324,-158.49,0.00027711,2]
[374601493,1753371038334,-158.49,0.00027736,2]
[374601494,1753371038343,-158.49,0.00027762,2]
[374601495,1753371038354,-158.49,0.00027787,2]
[374601496,1753371038364,-158.49,0.00027812,2]
[374601497,1753371038373,-158.49,0.00027837,2]
[374601498,1753371038383,-158.49,0.00027862,2]
[374601499,1753371038393,-158.49,0.00027887,2]
[374601500,1753371038403,-158.49,0.00027912,2]
[374601501,1753371038413,-155.0,0.0002792,3]
[374601502,1753371038429,-1036.48856281,0.00028175,15]
[374601503,1753371038443,-302.54019309,0.00028176,18]
[374601504,1753371038454,-174.49,0.00028376,2]
[374601505,1753371038464,-302.54019309,0.00028659,19]
[374601506,1753371038474,-871.44,0.00028742,2]
[374601507,1753371038484,-150.0,0.00028804,2]
[374601508,1753371038494,-200.9701,0.00028877,10]
[374601509,1753371038505,-1150.95,0.00028891,30]
[374601510,1753371038516,-1269.0,0.00028917,2]
[374601511,1753371038527,-562.099,0.00028917,2]
[374601513,1753371038538,-1195.971,0.00028917,2]
[374601515,1753371038548,-596.0,0.00028917,2]
[374601517,1753371038558,-1289.0,0.00028917,2]
[374601519,1753371038569,-890.0,0.00028917,2]
[374601521,1753371038581,-1167.0,0.00028917,2]
[374601523,1753371038591,-3354.0,0.00028917,2]
[374601525,1753371038600,-396.257,0.00028917,2]
[374601526,1753371038611,-4129.0,0.00028917,2]
[374601527,1753371038621,-152.7,0.00028974,2]
[374601528,1753371038631,-26354.70330967,0.00029,2]
[374601529,1753371038641,-1000.0,0.00029043,2]
[374601530,1753371038652,-151.0,0.000291,3]
[374601531,1753371038662,-302.54019309,0.00029141,20]
[374601532,1753371038672,-174.918,0.00029347,22]
[374601533,1753371038683,-2257.262,0.00029347,22]
[374601534,1753371038693,-150.0,0.00029574,2]
[374601535,1753371038707,-402.01,0.00029586,2]
[374601536,1753371038717,-302.54019309,0.00029624,21]
[374601537,1753371038727,-326.59,0.00029815,2]
[374601538,1753371038737,-999.99,0.00029815,2]
[374601539,1753371038747,-2756.61,0.00029815,2]
[374601540,1753371038757,-50515.68619515,0.000299,2]
[374601541,1753371038772,-490.0,0.000299,2]
[374601542,1753371038826,-2892.5235389,0.000299,2]
[374601545,1753371038908,-13099.07920658,0.000299,2]
[374601547,1753371038921,-920.03810823,0.000299,2]
[374601550,1753371038933,-988.13246,0.000299,2]
[374601802,1753371041529,-286.55000004,0.00027,2]
[374601804,1753371041542,-62.26999996,0.00027,2]
[374601806,1753371041552,-2967.73000004,0.000299,2]
[374601809,1753371041570,-2712.89297182,0.000299,2]
[374601813,1753371041606,-2105.91108139,0.000299,2]
[374601816,1753371041616,-578.68690176,0.000299,20]
[374601817,1753371041626,-191.72794564,0.000299,2]
[374601820,1753371041635,-2000.26552002,0.0003,2]
[374601822,1753371041646,-4299.21928904,0.0003001,2]
[374601824,1753371041657,-302.54019309,0.00030107,22]
[374601826,1753371041667,-736.71,0.00030127,2]
[374601828,1753371041676,-196.48396432,0.0003013,2]
[374601830,1753371041686,-200.15392849,0.0003013,2]
[374601831,1753371041695,-434.28,0.0003021,2]
[374601833,1753371041705,-150.0,0.0003029,3]
[374601835,1753371041715,-150.0,0.00030343,2]
[374601837,1753371041724,-174.49,0.00030356,2]
[374601840,1753371041738,-714.71,0.00030368,2]
[374601842,1753371041748,-871.44,0.00030473,2]
[374601844,1753371041757,-302.54019309,0.0003059,23]
[374601845,1753371041767,-276.64,0.00030929,120]
[374601848,1753371041782,-302.54019309,0.00031072,24]
[374601850,1753371041792,-150.0,0.00031113,2]
[374601852,1753371041801,-152.19360016,0.00031151,30]
[374601854,1753371041811,-150.0,0.0003147,3]
[374601856,1753371041822,-192.66349348,0.000315,2]
[374601858,1753371041831,-150.0,0.000315,2]
[374601860,1753371041841,-302.54019309,0.00031555,25]
[374601862,1753371041851,-152.7,0.00031608,2]
[374601864,1753371041860,-150.0,0.00031882,2]
[374601866,1753371041870,-2517.29612975,0.000319,30]
[374601868,1753371041881,-1036.48856281,0.00031916,15]
[374601870,1753371041891,-676.605,0.00031917,2]
[374601872,1753371041901,-890.0,0.00031917,2]
[374601874,1753371041910,-1167.0,0.00031917,2]
[374601876,1753371041921,-3599.451,0.00031917,2]
[374601878,1753371041930,-500.0,0.00031939,7]
[374601880,1753371041940,-1200.0,0.00031939,7]
[374601882,1753371041950,-1200.0,0.00031939,7]
[374601884,1753371041960,-200.0,0.00031947,2]
[374601886,1753371041970,-3751.27114819,0.00032,2]
[374601983,1753371042804,-37994.13492732,0.00032,2]
[374601984,1753371042814,-1546.23555819,0.00032,2]
[374601985,1753371042824,-302.54019309,0.00032038,26]
[374601986,1753371042833,-10648.62627825,0.00032124,7]
[374601987,1753371042842,-839.91269601,0.000322,7]
[374601988,1753371042851,-211.01152796,0.000322,7]
[374601989,1753371042861,-150.0,0.00032203,7]
[374601990,1753371042870,-871.44,0.00032203,2]
[374601992,1753371042880,-871.37957806,0.000323,2]
[374601994,1753371042890,-186.72,0.00032329,2]
[374601996,1753371042900,-302.54019309,0.00032521,27]
[374601998,1753371042909,-500.0,0.00032575,2]
[374602000,1753371042918,-150.0,0.0003265,3]
[374602002,1753371042927,-150.0,0.00032651,2]
[374602004,1753371042937,-1000.0,0.00032673,2]
[374602006,1753371042946,-500.0,0.00032761,7]
[374602009,1753371042955,-1200.0,0.00032761,7]
[374602011,1753371042965,-1200.0,0.00032761,7]
[374602013,1753371042975,-4702.49352068,0.000328,2]
[374602015,1753371042984,-508.0,0.00032859,2]
[374602018,1753371042993,-158.46622541,0.000329,2]
[374602020,1753371043002,-400.0,0.00032999,2]
[374602022,1753371043012,-400.0,0.00032999,2]
[374602024,1753371043021,-400.0,0.00032999,2]
[374602026,1753371043034,-400.0,0.00032999,2]
[374602029,1753371043043,-262.63036998,0.00032999,2]
[374602032,1753371043053,-509.43387081,0.00033,30]
[374602035,1753371043063,-4599.59125317,0.00033,2]
[374602038,1753371043073,-25365.77193599,0.00033,2]
[374602041,1753371043083,-302.54019309,0.00033003,28]
[374602044,1753371043097,-218.47323741,0.000331,2]
[374602046,1753371043107,-150.0,0.00033421,2]
[374602048,1753371043117,-302.54019309,0.00033486,29]
[374602051,1753371043127,-1179.80596808,0.000335,2]
[374602054,1753371043137,-270.46305856,0.00033503,2]
[374602104,1753371043586,-500.0,0.00033583,7]
[374602110,1753371043639,-1200.0,0.00033583,7]
[374602112,1753371043654,-1200.0,0.00033583,7]
[374602114,1753371043664,-165.18,0.0003362,2]
[374602116,1753371043674,-150.0,0.0003384,3]
[374602119,1753371043684,-2500.0,0.00033873,2]
[374602121,1753371043695,-331.83912197,0.00033873,2]
[374602123,1753371043705,-1146.65733289,0.00033873,2]
[374602125,1753371043715,-871.44,0.00033933,2]
[374602127,1753371043726,-302.54019309,0.00033969,29]
[374602129,1753371043735,-1036.48856281,0.00033972,30]
[374602131,1753371043745,-2000.0,0.00033973,120]
[374602133,1753371043755,-2000.0,0.00033973,120]
[374602135,1753371043764,-2000.0,0.00033973,120]
[374602137,1753371043774,-2000.0,0.00033973,120]
[374602139,1753371043786,-2000.0,0.00033973,120]
[374602141,1753371043795,-2000.0,0.00033973,120]
[374602143,1753371043804,-2000.0,0.00033973,120]
[374602145,1753371043814,-2000.0,0.00033973,120]
[374602147,1753371043824,-2000.0,0.00033973,120]
[374602149,1753371043833,-2000.0,0.00033973,120]
[374602151,1753371043843,-2000.0,0.00033973,120]
[374602153,1753371043853,-2000.0,0.00033973,120]
[374602155,1753371043862,-2000.0,0.00033973,120]
[374602157,1753371043872,-2000.0,0.00033973,120]
[374602159,1753371043882,-2000.0,0.00033973,120]
[374602161,1753371043891,-2000.0,0.00033973,120]
[374602163,1753371043902,-2000.0,0.00033973,120]
[374602165,1753371043911,-2000.0,0.00033973,120]
[374602167,1753371043921,-2000.0,0.00033973,120]
[374602169,1753371043931,-2000.0,0.00033973,120]
[374602171,1753371043941,-2000.0,0.00033973,120]
[374602173,1753371043951,-2000.0,0.00033973,120]
[374602175,1753371043960,-2000.0,0.00033973,120]
[374602177,1753371043970,-2000.0,0.00033973,120]
[374602179,1753371043980,-2000.0,0.00033973,120]
[374602181,1753371043990,-2000.0,0.00033973,120]
[374602184,1753371044000,-2000.0,0.00033973,120]
[374602185,1753371044010,-2000.0,0.00033973,120]
[374602187,1753371044020,-509.0,0.00033973,120]
[374602189,1753371044031,-500.0,0.00033973,2]
[374602192,1753371044041,-508.0,0.0003399,4]
[374602194,1753371044050,-36699.0783337,0.0003399,3]
[374602196,1753371044060,-2546.54130571,0.00033991,2]
[374602198,1753371044070,-524.23135665,0.00033998,2]
[374602200,1753371044080,-1036.48856283,0.00033999,30]
[374602202,1753371044090,-10000.0,0.00033999,2]
[374602204,1753371044099,-7000.0,0.00033999,2]
[374602206,1753371044109,-1000.0,0.00034,22]
[374602208,1753371044119,-1000.0,0.00034,22]
[374602210,1753371044129,-1000.0,0.00034,22]
[374602212,1753371044139,-1000.0,0.00034,22]
[374602214,1753371044148,-1000.0,0.00034,22]
[374602216,1753371044157,-1000.0,0.00034,22]
[374602218,1753371044167,-1000.0,0.00034,22]
[374602220,1753371044176,-976.96,0.00034,2]
[374602222,1753371044186,-71565.53430855,0.00034,2]
[374602224,1753371044196,-226.62368062,0.00034,2]
[374602226,1753371044205,-839.91269601,0.00034,3]
[374602228,1753371044215,-211.01152796,0.00034,3]
[374602230,1753371044225,-331.83912197,0.00034075,2]
[374602232,1753371044236,-1146.65733285,0.00034075,2]
[374602234,1753371044246,-150.0,0.0003419,2]
[374602236,1753371044255,-152.7,0.00034242,2]
[374602238,1753371044266,-331.83912197,0.00034277,2]
[374602240,1753371044276,-1146.65733285,0.00034277,2]
[374602243,1753371044288,-276.64,0.00034365,120]
[374602245,1753371044298,-2860.4224,0.000344,2]
[374602247,1753371044308,-1200.0,0.00034405,7]
[374602249,1753371044320,-1200.0,0.00034405,7]
[374602251,1753371044331,-302.54019309,0.00034452,30]
[374602253,1753371044341,-331.83912197,0.00034479,2]
[374602255,1753371044351,-1146.65733285,0.00034479,2]
[374602257,1753371044361,-1687.36524554,0.0003449,2]
[374602259,1753371044370,-2000.0,0.000345,2]
[374602261,1753371044380,-545.10178049,0.00034608,2]
[374602263,1753371044390,-18349.5391669,0.0003465,3]
[374602265,1753371044400,-331.83912197,0.00034681,2]
[374602267,1753371044411,-1146.65733285,0.00034681,2]
[374602269,1753371044421,-1281.41213,0.000347,30]
[374602271,1753371044431,-736.45421893,0.00034788,2]
[374602273,1753371044441,-480.0,0.00034789,120]
[374602275,1753371044451,-500.0,0.00034789,2]
[374602277,1753371044461,-270.73448872,0.00034789,120]
[374602279,1753371044471,-465.55,0.00034822,2]
[374602281,1753371044481,-331.83912197,0.00034883,2]
[374602283,1753371044492,-1146.65733285,0.00034883,2]
[374602285,1753371044502,-1046.46,0.000349,7]
[374602287,1753371044512,-890.0,0.00034917,2]
[374602289,1753371044521,-1167.0,0.00034917,2]
[374602292,1753371044532,-302.54019309,0.00034934,31]
[374602294,1753371044542,-358.19,0.00034959,2]
[374602296,1753371044551,-150.0,0.0003496,2]
[374602298,1753371044562,-150.0,0.00035,14]
[374602301,1753371044572,-1000.0,0.00035,25]
[374602303,1753371044584,-1000.0,0.00035,25]
[374602306,1753371044594,-1000.0,0.00035,25]
[374602309,1753371044604,-1000.0,0.00035,25]
[374602311,1753371044614,-767.0,0.00035,30]
[374602313,1753371044624,-846.62349066,0.00035,2]
[374602315,1753371044634,-166.56333366,0.00035,120]
[374602317,1753371044644,-1000.50399318,0.00035,120]
[374602319,1753371044653,-150.0,0.0003502,3]
[374602321,1753371044664,-168.0,0.00035037,2]
[374602323,1753371044673,-331.83912197,0.00035085,2]
[374602325,1753371044683,-1146.65733285,0.00035085,2]
[374602327,1753371044692,-508.0,0.00035121,6]
[374602328,1753371044702,-1000.0,0.00035127,2]
[374602330,1753371044711,-168.0,0.00035172,2]
[374602333,1753371044721,-1200.0,0.00035227,7]
[374602335,1753371044739,-1200.0,0.00035227,7]
[374602338,1753371044753,-500.0,0.00035227,7]
[374602340,1753371044762,-331.83912197,0.00035287,2]
[374602342,1753371044772,-1146.65733285,0.00035287,2]
[374602344,1753371044783,-23110.8528418,0.000354,30]
[374602346,1753371044794,-239.0,0.000354,2]
[374602348,1753371044804,-1000.0,0.000354,7]
[374602350,1753371044815,-9999.0,0.000354,18]
[374602352,1753371044825,-302.54019309,0.00035417,32]
[374602355,1753371044836,-820.40049993,0.0003542,2]
[374602357,1753371044847,-1649.05263802,0.00035424,2]
[374602359,1753371044856,-200.0,0.00035474,10]
[374602361,1753371044867,-331.83912197,0.00035489,2]
[374602363,1753371044877,-1146.65733285,0.00035489,2]
[374602365,1753371044887,-9999.0,0.000355,22]
[374602367,1753371044896,-1000.0,0.000356,7]
[374602369,1753371044906,-9999.0,0.000356,22]
[374602372,1753371044915,-18349.5391669,0.00035607,3]
[374602374,1753371044925,-200.0,0.00035616,120]
[374602376,1753371044935,-150.0,0.00035617,2]
[374602378,1753371044946,-150.0,0.00035617,2]
[374602380,1753371044955,-150.0,0.00035617,2]
[374602382,1753371044965,-150.0,0.00035617,2]
[374602384,1753371044975,-200.0,0.00035617,2]
[374602386,1753371044985,-150.0,0.00035617,2]
[374602388,1753371044995,-150.0,0.00035617,2]
[374602390,1753371045005,-150.0,0.00035617,2]
[374602392,1753371045016,-150.0,0.00035617,2]
[374602394,1753371045027,-150.0,0.00035617,2]
[374602397,1753371045041,-150.0,0.00035617,2]
[374602399,1753371045051,-150.0,0.00035617,2]
[374602400,1753371045061,-150.0,0.00035617,2]
[374602402,1753371045071,-150.0,0.00035617,2]
[374602404,1753371045081,-150.0,0.00035617,2]
[374602407,1753371045091,-150.0,0.00035617,2]
[374602409,1753371045101,-150.0,0.00035617,2]
[374602412,1753371045111,-150.0,0.00035617,2]
[374602415,1753371045120,-150.0,0.00035617,2]
[374602417,1753371045130,-150.0,0.00035617,2]
[374602419,1753371045140,-500.0,0.00035617,2]
[374602421,1753371045150,-150.0,0.00035617,2]
[374602423,1753371045160,-151.0,0.00035653,2]
[374602425,1753371045170,-151.0,0.00035653,2]
[374602427,1753371045180,-871.44,0.00035664,2]
[374602429,1753371045190,-1000.0,0.00035665,2]
[374602431,1753371045199,-991.7285785,0.00035666,7]
[374602433,1753371045209,-500.0,0.00035666,7]
[374602435,1753371045219,-902.45835785,0.00035666,7]
[374602437,1753371045229,-2036.87321427,0.0003567,2]
[374602438,1753371045239,-5000.0,0.00035673,2]
[374602439,1753371045249,-2036.87321427,0.00035681,2]
[374602440,1753371045259,-1000.0,0.00035682,2]
[374602441,1753371045268,-742.42948385,0.00035683,2]
[374602442,1753371045278,-331.83912197,0.00035691,2]
[374602443,1753371045292,-1146.65733285,0.00035691,2]
[374602444,1753371045302,-2036.87321427,0.00035691,2]
[374602445,1753371045311,-816.94469644,0.000357,30]
[374602446,1753371045321,-150.0,0.00035729,2]
[374602447,1753371045331,-7000.0,0.0003574,2]
[374602448,1753371045341,-742.6761,0.00035746,2]
[374602450,1753371045350,-358.16534947,0.00035748,7]
[374602452,1753371045360,-37835.75067,0.0003575,3]
[374602454,1753371045370,-18349.5391669,0.00035754,3]
[374602456,1753371045381,-37835.75067,0.00035758,3]
[374602459,1753371045391,-91747.6958343,0.0003576,3]
[374602460,1753371045401,-88283.4182299,0.0003576,3]
[374602463,1753371045411,-172.04885754,0.0003576,2]
[374602464,1753371045421,-155.13,0.0003576,2]
[374602467,1753371045431,-10011.49002089,0.00035763,3]
[374602469,1753371045446,-2118.84250625,0.00035763,3]
[374602472,1753371045464,-481.58436286,0.00035763,3]
[374602474,1753371045474,-185.398,0.00035764,2]
[374602476,1753371045484,-73398.1566674,0.00035768,3]
[374602478,1753371045494,-33588.44861835,0.0003577,30]
[374602480,1753371045508,-4628.92986704,0.0003577,30]
[374602484,1753371045520,-945.71960117,0.0003577,30]
[374602486,1753371045529,-13662.47308,0.0003577,3]
[374602488,1753371045543,-11232.0,0.0003577,3]
[374602491,1753371045560,-609.1,0.000355,44]
[374602494,1753371045577,-9389.9,0.000355,44]
[374602497,1753371045592,-12140.22399997,0.0003577,3]
[374602523,1753371045776,-6388.029843,0.0003577,3]
[374602528,1753371045819,-1191.4,0.0003577,3]
[374602534,1753371045863,-102182.18641203,0.0003577,3]
[374602537,1753371045882,-151343.00268,0.0003577,3]
[374602540,1753371045902,-502.17410549,0.00035772,120]
[374602543,1753371045922,-500.5178465,0.00035773,2]
[374602547,1753371045945,-500.0,0.00035773,5]
[374602550,1753371045965,-512.88852917,0.00035773,2]
[374602552,1753371045980,-400.0,0.00035773,2]
[374602555,1753371046001,-480.23110874,0.00035773,2]
[374602558,1753371046016,-400.0,0.00035773,2]
[374602560,1753371046032,-400.0,0.00035773,2]
[374602565,1753371046071,-200.00890385,0.00035773,2]
[374602568,1753371046089,-7000.0,0.00035774,2]
[374602571,1753371046107,-151.0,0.00035775,7]
[374602574,1753371046126,-153.0,0.00035775,30]
[374602577,1753371046144,-154.39614192,0.00035775,30]
[374602580,1753371046161,-1211.0,0.00035775,30]
[374602583,1753371046178,-1211.0,0.00035775,30]
[374602585,1753371046196,-1211.0,0.00035775,30]
[374602588,1753371046213,-1211.0,0.00035775,30]
[374602591,1753371046231,-1211.0,0.00035775,30]
[374602594,1753371046248,-1211.0,0.00035775,30]
[374602597,1753371046264,-1211.0,0.00035775,30]
[374602599,1753371046280,-1172.94158869,0.00035775,30]
[374602602,1753371046299,-157.21749108,0.00035775,30]
[374602605,1753371046316,-1083.0,0.00035775,5]
[374602608,1753371046333,-1209.67,0.00035776,120]
[374602611,1753371046351,-3233.26,0.00035779,120]
[374602614,1753371046367,-512.5,0.0003578,47]
[374602616,1753371046385,-631.52810424,0.0003578,3]
[374602619,1753371046401,-298043.00775378,0.0003578,3]
[374602622,1753371046418,-248.71150208,0.0003578,5]
[374602624,1753371046434,-50447.66756,0.0003578,3]
[374602627,1753371046451,-155.13,0.0003578,2]
[374602630,1753371046467,-150.0,0.00035781,7]
[374602632,1753371046483,-303.04,0.00035781,2]
[374602635,1753371046499,-460.0,0.00035781,7]
[374602638,1753371046516,-500.0,0.00035781,2]
[374602640,1753371046531,-500.0,0.00035781,120]
[374602643,1753371046548,-150.0,0.00035781,12]
[374602645,1753371046564,-500.0,0.00035781,2]
[374602648,1753371046582,-155.13,0.00035781,2]
[374602651,1753371046597,-155.13,0.00035781,2]
[374602653,1753371046614,-155.13,0.00035781,2]
[374602656,1753371046630,-155.13,0.00035781,2]
[374602659,1753371046647,-155.13,0.00035781,2]
[374602662,1753371046665,-172.04885754,0.00035782,2]
[374602664,1753371046682,-500.0,0.00035782,30]
[374602667,1753371046699,-527.23426534,0.00035782,120]
[374602670,1753371046716,-500.0,0.00035782,2]
[374602673,1753371046732,-357.48490266,0.00035782,2]
[374602675,1753371046747,-151.333552,0.00035783,7]
[374602678,1753371046764,-151.0,0.00035783,7]
[374602681,1753371046779,-151.688234,0.00035783,7]
[374602683,1753371046796,-151.0,0.00035783,7]
[374602686,1753371046813,-151.0,0.00035783,7]
[374602689,1753371046828,-151.0,0.00035783,7]
[374602692,1753371046844,-175.854722,0.00035783,7]
[374602694,1753371046860,-348.95278864,0.00035784,2]
[374602697,1753371046876,-348.95278864,0.00035784,2]
[374602700,1753371046891,-348.95278864,0.00035784,2]
[374602702,1753371046906,-151.0,0.00035784,7]
[374602705,1753371046922,-151.0,0.00035784,7]
[374602708,1753371046939,-152.880442,0.00035784,7]
[374602710,1753371046956,-150.75496214,0.00035787,120]
[374602713,1753371046973,-151.0,0.00035789,7]
[374602716,1753371046990,-151.0,0.00035789,7]
[374602718,1753371047006,-184.058289,0.00035789,7]
[374602721,1753371047023,-151.0,0.00035789,7]
[374602724,1753371047040,-151.0,0.00035789,7]
[374602726,1753371047056,-50000.0,0.0003579,30]
[374602729,1753371047072,-50000.0,0.0003579,31]
[374602732,1753371047088,-50000.0,0.0003579,32]
[374602734,1753371047105,-50000.0,0.0003579,33]
[374602737,1753371047121,-50000.0,0.0003579,34]
[374602740,1753371047139,-1472.27685804,0.00035791,2]
[374602742,1753371047154,-151.0,0.00035791,7]
[374602745,1753371047170,-286.099138,0.00035791,7]
[374602747,1753371047187,-151.0,0.00035791,7]
[374602750,1753371047203,-151.0,0.00035791,7]
[374602753,1753371047219,-151.0,0.00035791,7]
[374602755,1753371047236,-151.0,0.00035791,7]
[374602758,1753371047251,-151.0,0.00035791,7]
[374602760,1753371047267,-151.0,0.00035791,7]
[374602784,1753371047490,-151.0,0.00035791,7]
[374602787,1753371047507,-151.0,0.00035791,7]
[374602789,1753371047522,-151.0,0.00035791,7]
[374602792,1753371047539,-151.0,0.00035791,7]
[374602794,1753371047555,-243.452072,0.00035791,7]
[374602795,1753371047571,-360307.75353609,0.00035791,30]
[374602796,1753371047592,-2241.99919999,0.00035791,30]
[374604476,1753371208617,152.0,0.00025,120]
[374604477,1753371209998,152.0,0.000263,120]
[374604484,1753371557652,348.2,0.00027397,120]
[374604487,1753371760705,151.59,0.00013699,2]
[374604499,1753371968665,249.15,0.0002739,120]
[374604544,1753372231930,-150.0,0.00022,2]
[374604545,1753372231943,-302.63,0.00022538,2]
[374604547,1753372231952,-303.56,0.00022538,2]
[374604548,1753372231962,-300.89,0.00022702,2]
[374604549,1753372231973,-304.82,0.00022702,2]
[374604550,1753372231984,-302.62,0.00022985,2]
[374604551,1753372231994,-303.98,0.00022985,2]
[374604552,1753372232005,-96.26368793,0.0002318,2]
[374604553,1753372232017,-53.73631207,0.0002318,2]
[374604554,1753372232027,-504.49,0.00023645,2]
[374604555,1753372232037,-300.0,0.00024199,2]
[374604556,1753372232047,-300.0,0.00024199,2]
[374604557,1753372232056,-200.0,0.00024199,10]
[374604558,1753372232067,-300.0,0.000242,2]
[374604559,1753372232076,-250.0,0.000242,2]
[374604560,1753372232087,-2500.0,0.000242,2]
[374604561,1753372232096,-150.0,0.0002437,2]
[374604562,1753372232111,-504.49,0.00025376,2]
[374604563,1753372232120,-150.0,0.0002555,2]
[374604564,1753372232130,-300.0,0.00025899,2]
[374604565,1753372232140,-4433.00581345,0.000259,14]
[374604566,1753372232150,-304.07,0.00025996,2]
[374604567,1753372232159,-302.44,0.00025996,2]
[374604568,1753372232169,-303.88,0.00026175,2]